Cogmind - Beta 17 @@@ ROGUE MODE // 2026.06.23 @ 22:09:38 Player: Akl Result: Destroyed by as-89703 with Assembled Rifle Performance ------------- Evolutions (0) 0 Regions Visited (2) 400 Robots Destroyed (1) 5 Value Destroyed (16) 16 Prototype IDs (0) 0 Alien Tech Used (0) 0 Bonus (0) 0 TOTAL SCORE: 421 Bonus ------- None Cogmind --------- Core Integrity 0/250 Matter 89/300 Energy 99/100 System Corruption 5% Temperature Cool (20) Movement Core (100) Ox1 Location -10/Mines Parts ------- > --- POWER (1) -------- (None) > --- PROPULSION (2) --- (None) > --- UTILITY (2) ------ Small Storage Unit > --- WEAPON (2) ------- (None) > --- INVENTORY (8) ---- Light Ion Engine Aluminum Leg Aluminum Leg EM Pulse Gun Mining Laser Peak State ------------ > --- POWER ------------ Ion Engine > --- PROPULSION ------- Aluminum Leg Aluminum Leg > --- UTILITY ---------- Small Storage Unit Terrain Scanner > --- WEAPON ----------- Assault Rifle Datajack > --- INVENTORY -------- Light Ion Engine Light Treads Light Treads EM Pulse Gun Beam Cannon Light Assault Rifle Grenade Launcher [Rating: 7] Favorites ----------- Power Ion Engine Engine Ion Engine Propulsion Light Treads Treads Light Treads Leg Aluminum Leg Utility Small Storage Unit Device Terrain Scanner Storage Small Storage Unit Weapon Grenade Launcher Ballistic Gun Assault Rifle Launcher Grenade Launcher Slashing Weapon Mining Claw Special Melee Weapon Datajack Build | -11 -10 -10 ------- Run | Yrd Mat Min Slots Evolved . | . . . Power . | . . . Propulsion . | . . . Utility . | . . . Weapon . | . . . Parts Attached 14 | 6 7 1 Power 1 | 1 . . Engine 1 | 1 . . Core . | . . . Reactor . | . . . Propulsion 4 | 2 2 . Treads 2 | . 2 . Leg 2 | 2 . . Wheel . | . . . Hover . | . . . Flight . | . . . Utility 3 | 1 2 . Device 1 | . 1 . Storage 2 | 1 1 . Processor . | . . . Hackware . | . . . Protection . | . . . Artifact . | . . . Weapon 6 | 2 3 1 Energy Gun . | . . . Energy Cannon . | . . . Ballistic Gun 2 | 2 . . Ballistic Cannon . | . . . Launcher 2 | . 2 . Special Weapon . | . . . Impact Weapon . | . . . Slashing Weapon 1 | . . 1 Piercing Weapon . | . . . Special Melee Weapon 1 | . 1 . Unidentified Prototypes . | . . . Parts Lost 5 | . . 5 Power 1 | . . 1 Propulsion . | . . . Utility 1 | . . 1 Weapon 3 | . . 3 Highest Loss Streak 5 | . . 5 To Critical Strikes . | . . . Average Backups 5 | 2 6 6 Power . | . 1 1 Propulsion 1 | 1 2 2 Utility . | . . . Weapon 2 | . 3 3 Tool/Special . | . . . Unused Backups 3 | . 1 2 Power 1 | . . 1 Propulsion . | . . . Utility . | . . . Weapon 2 | . 1 1 Tool/Special . | . . . Average Slot Usage (%) 94 | . 94 94 Engine 14 | . 14 14 Treads 17 | . 14 23 Leg 9 | . 13 . Device 10 | . 9 12 Storage 14 | . 14 14 Ballistic Gun 4 | . 6 1 Launcher 10 | . 10 12 Special Melee Weapon 10 | . 10 11 Peak Build Rating 7 | 6 7 7 Average Rating 6 | 3 6 6 On Entrance 4 | . 6 7 Avg Prop Armor Cover (%) . | . . . Naked Turns . | . . . Heaviest Build 15 | 13 15 15 Greatest Support 40 | 20 40 40 Greatest Overweight (x) 2 | 1 . 2 Average Overweight (x) . | . . . Largest Inventory Capacity 25 | 8 25 8 Average Capacity 7 | 6 8 8 Most Carried 9 | 4 9 7 Average Carried 5 | 2 6 6 Final Capacity 8 | 8 8 8 Final Carried 7 | 4 7 5 Class Distribution -------------------- 100% | Mutant Dominant Class ---------------- Mutant | -10/Materials Mutant | -10/Mines Resources | -11 -10 -10 ----------- Run | Yrd Mat Min Matter Collected 176 | 175 1 . Remotely . | . . . Salvage Created 17 | . 1 16 Parts . | . . . Haulers Intercepted . | . . . Recyclers Shooed . | . . . Parts Field Recycled . | . . . Retrieved Matter . | . . . Parts Self-Destructed . | . . . Prevented . | . . . Parts Restored . | . . . Kills | -11 -10 -10 ------- Run | Yrd Mat Min Combat Hostiles Destroyed 3 | . . 3 Melee 1 | . . 1 AOE 2 | . . 2 Classes Destroyed 2 | . 1 1 Watcher 1 | . 1 . Assembled 3 | . . 3 Best Kill Streak 3 | . 1 3 Combat Bots Only 3 | . . 3 Max Kills in Single Turn 2 | . 1 2 Gunslinging . | . . . Exploded 2 | . . 2 Melee 1 | . . 1 Uniques/NPCs Destroyed . | . . . Combat | -11 -10 -10 -------- Run | Yrd Mat Min Hostile Shots Fired 59 | . . 59 Missed 16 | . . 16 Hits 43 | . . 43 Melee 11 | . . 11 Projectile 32 | . . 32 Critical Strikes 3 | . . 3 Part Disruptions 1 | . . 1 Damage Taken 750 | . . 750 Core 251 | . . 251 Absorbed by Shields . | . . . Core Remaining (%) 100 | 100 . . Volleys Fired 6 | . 2 4 Largest 1 | . 1 1 Hottest 30 | . 30 30 Shots Fired 6 | . 2 4 Gun 2 | . . 2 Cannon . | . . . Launcher 4 | . 2 2 Special . | . . . Kinetic 2 | . . 2 Thermal . | . . . Explosive 4 | . 2 2 Electromagnetic . | . . . Robot Hit Streak 1 | . . 1 Robot Miss Streak 2 | . 1 2 Penetration Max . | . . . Secondary Targets . | . . . Shots Hit Robots 4 | . 2 2 Core Hits 11 | . 1 10 Critical Kills . | . . . Critical Parts Destroyed . | . . . Critical Strikes . | . . . Melee Attacks 7 | . 3 4 Impact . | . . . Slashing 4 | . . 4 Piercing . | . . . Sneak Attacks 2 | . 2 . Combat Hostiles . | . . . Follow-up Attacks . | . . . Damage Inflicted 328 | . 77 251 Guns 14 | . . 14 Cannons . | . . . Explosions 284 | . 77 207 Melee 30 | . . 30 Ramming . | . . . Kinetic 14 | . . 14 Thermal . | . . . Explosive 284 | . 77 207 Electromagnetic . | . . . Impact . | . . . Slashing 30 | . . 30 Piercing . | . . . Highest Corruption 5 | . . 5 Average Corruption 5 | . . 5 Corruption Purged . | . . . Corruption Blocked . | . . . Overload Shots . | . . . Overflow Damage 3 | . 2 1 Projectiles . | . . . Explosions 3 | . 2 1 Melee . | . . . Knockbacks . | . . . Impact . | . . . Kinetic . | . . . Secondary . | . . . Self-Inflicted Damage 22 | . . 22 Shots 1 | . . 1 Rammed . | . . . Targets Rammed . | . . . Kicked . | . . . Crushed . | . . . Highest Temperature 2 | . . 2 Average Temperature 1 | . . 1 Received Heat Transfer 240 | . . 240 Siege Activations . | . . . Martial Activations . | . . . Shielding Activations . | . . . Robots Disrupted . | . . . Combat Hostiles . | . . . Robots Corrupted . | . . . Combat Hostiles . | . . . Parts Fried . | . . . Impact Corruptions . | . . . Robots Melted . | . . . Combat Hostiles . | . . . Parts Melted . | . . . Heat Transferred . | . . . Parts Sabotaged . | . . . Parts Stolen . | . . . Parts Stripped . | . . . Power Chain Reactions . | . . . Alert | -11 -10 -10 ------- Run | Yrd Mat Min Maximum Alert Level . | . . . Low Security (%) 100 | 100 100 100 Level 1 . | . . . Level 2 . | . . . Level 3 . | . . . Level 4 . | . . . Level 5 . | . . . High Security . | . . . Max Security . | . . . Peak Influence 24 | . 24 3 Initial . | . . . Average 1 | . 1 . Influence Increases 35 | . 26 9 Destroy 0b10 Robot/NC 5 | . 5 . Destroy Leader 2 | . 2 . Successful Hack 2 | . 2 . Destroy Structure 26 | . 17 9 Influence Decreases 35 | . 26 9 Time Decay 26 | . 26 . Lost Part 9 | . . 9 Squads Dispatched . | . . . Investigation . | . . . Extermination . | . . . Reinforcement . | . . . Assault . | . . . Garrison . | . . . Intercept . | . . . Searches Triggered . | . . . Construction Impeded . | . . . Haulers Reinforced . | . . . Active Scanning Responses . | . . . Cargo Convoy Interrupts . | . . . Stealth | -11 -10 -10 --------- Run | Yrd Mat Min Distress Signals . | . . . Communications Jammed . | . . . Distress Signals . | . . . Times Spotted 11 | . 1 10 Peak Tracking Total 10 | . 1 10 Tactical Retreats . | . . . Traps | -11 -10 -10 ------- Run | Yrd Mat Min Traps Triggered 1 | . 1 . Indirectly . | . . . Trap Hack Attempts . | . . . Triggered . | . . . Disarmed . | . . . Reprogrammed . | . . . Reused . | . . . Traps Extracted . | . . . Installed . | . . . Triggered . | . . . Machines | -11 -10 -10 ---------- Run | Yrd Mat Min Machines Disabled . | . . . Max in Single Turn . | . . . Machines Repaired . | . . . Machines Dismantled . | . . . Machines Sabotaged . | . . . Overloaded Fab Kills . | . . . Hacking | -11 -10 -10 --------- Run | Yrd Mat Min Machines Accessed 2 | . 2 . Terminals 2 | . 2 . Fabricators . | . . . Repair Stations . | . . . Recycling Units . | . . . Scanalyzers . | . . . Garrison Access . | . . . Total Hacks 3 | . 3 . Successful 1 | . 1 . Failed 2 | . 2 . Catastrophic . | . . . Database Lockouts . | . . . Manual . | . . . Terminals 3 | . 3 . Fabricators . | . . . Repair Stations . | . . . Recycling Units . | . . . Scanalyzers . | . . . Garrison Access . | . . . Terminal Hacks 1 | . 1 . Record 1 | . 1 . Fabricator Hacks . | . . . Repair Station Hacks . | . . . Recycling Unit Hacks . | . . . Scanalyzer . | . . . Garrison Access Hacks . | . . . Unauthorized Hacks . | . . . Terminals . | . . . Fabricators . | . . . Repair Stations . | . . . Recycling Units . | . . . Scanalyzers . | . . . Garrison Access . | . . . Data Cores Recovered . | . . . Used . | . . . Hacking Detections 1 | . 1 . Full Trace Events . | . . . Feedback Events . | . . . Feedback Blocked . | . . . Robot Schematics Acquired . | . . . Robots Built . | . . . Authchips . | . . . Time . | . . . Total Robot Build Rating . | . . . Part Schematics Acquired . | . . . Parts Built . | . . . Authchips . | . . . Time . | . . . Total Part Build Rating . | . . . Part Studies Acquired . | . . . Parts Repaired . | . . . Time . | . . . Parts Recycled . | . . . Recycled Matter . | . . . Retrieved Matter . | . . . Retrieved Components . | . . . Parts Scanalyzed . | . . . Part Schematics Acquired . | . . . Parts Damaged . | . . . Bothacking | -11 -10 -10 ------------ Run | Yrd Mat Min Used RIF Installer . | . . . Robots Hacked 1 | . 1 . Non-combat 1 | . 1 . Combat . | . . . Robot Hacks Applied 2 | . 2 . parse_system 1 | . 1 . no_distress 1 | . 1 . Relay Couplers Released . | . . . Fabnet Peak Effective % . | . . . Robots Rewired . | . . . Allies Hacked . | . . . Hacks Repelled . | . . . Allies | -11 -10 -10 -------- Run | Yrd Mat Min Total Allies . | . . . Largest Group . | . . . Highest-Rated Group . | . . . Highest-Rated Ally . | . . . Total Orders . | . . . Ally Attacks . | . . . Total Damage . | . . . Kills . | . . . Allies Corrupted . | . . . Allies Melted . | . . . Intel | -11 -10 -10 ------- Run | Yrd Mat Min Active Infowar (turns) 257 | . 175 82 Terrain 257 | . 175 82 Robot Analysis Total . | . . . Derelict Logs Recovered . | . . . Drone Launches . | . . . Drone Recoveries . | . . . Exploration | -11 -10 -10 ------------- Run | Yrd Mat Min Turns Passed 415 | 64 259 92 Spaces Moved 250 | 49 163 38 Core 17 | 13 . 4 Treads 112 | . 78 34 Legs 121 | 36 85 . Wheels . | . . . Hover . | . . . Flight . | . . . Fastest Speed 50 | 50 120 100 Average Speed 134 | 105 139 155 Slowest Speed 160 | 120 160 160 Overloaded Moves . | . . . Propulsion Burnouts . | . . . Robots Hopped . | . . . Potential Cave-ins . | . . . Cave-ins Triggered . | . . . Exploration Rate (%) 18 | 3 34 17 Regions Visited 2 Branch Regions 1 Pre-discovered Areas . | . . . Known Exits Taken . | . . . Unknown Exits Taken 2 | 1 1 . Scrap Searched . | . . . Spaces Dug . | . . . Terrain Destroyed 30 | . 17 13 Melee . | . . . Projectile . | . . . AOE 30 | . 17 13 Terrain Rammed . | . . . Walls Destroyed . | . . . Machines Disabled . | . . . Actions | -11 -10 -10 --------- Run | Yrd Mat Min Total 309 | 59 190 60 Wait 15 | . 3 12 Move 248 | 48 162 38 Hop . | . . . Pick Up 14 | 5 9 . Fast Attach 6 | 5 1 . Attach 5 | 1 2 2 Detach . | . . . Swap 6 | . 6 . Drop 2 | . 2 . Fire 6 | . 2 4 Melee 7 | . 3 4 Ram . | . . . Kick . | . . . Crush . | . . . Escape Stasis . | . . . Rewire . | . . . Trap . | . . . Miscellaneous . | . . . Route ------- -11/Scrapyard -10/Materials -10/Mines History --------- Turn | Location | Event 9 | -11/Scrapyard | Discovered new exit (range 15) 65 | -11/Scrapyard | Entered Materials 281 | -10/Materials | Discovered new exit (range 16) 315 | -10/Materials | Build established: Mutant 324 | -10/Materials | Entered Mines 348 | -10/Mines | Assembled infested the area 414 | -10/Mines | Core integrity fell below 50% 415 | -10/Mines | Core integrity fell below 20% 416 | -10/Mines | Destroyed by as-89703 with Assembled Rifle Last Messages --------------- 00338_ K-01 Serf collects debris. 00341_ K-01 Serf cleans the Laser Drill. 00342_ K-01 Serf collects debris. 00344_ K-01 Serf cleans the Laser Drill. 00348_ ALERT: Infestation in the mines, dispatching Demolisher response squad. [Achievement: Dramatic Entrance] 00390_ Datajack destroyed. 00390_ Destroyed Datajack. 00392_ Destroyed Asb. Hover Unit. 00397_ Lgt. Treads severed. 00398_ as-73827 destroyed. 00401_ Grenade Launcher destroyed. 00405_ Lgt. Treads severed. 00406_ Terrain Scanner destroyed. 00409_ as-35562 destroyed. 00412_ Ion Engine destroyed. 00414_ Lgt. Assault Rifle severed. 00414_ Mining Claw destroyed. 00414_ System corrupted by crushing effect (+5). Map ----- +----------------------------------------------------+ | | | | | | | | | | | | | | | | | | | | | | | | | | | | | | | | | | | | | ?????????????????????????????????????????????? | | ?????????????????????????????????????????????? | | ??????????????????????????????????#??????????? | | ?????????????????????????????#???????????????? | | ?????????????????????????######??????????????? | | ???????????????????????### #??????????????? | | ??????????????????###### ######?????????? | | ??????????????????# @ ## ##????????? | | ??????????????????# %aa aa ##???????? | | ??????????????????## a aa ##??????? | | ???????????????????### <%### a= ##?????? | | ?????????????????????# ??# ##????? | | ?????????????????????# #??## ##???? | | ?????????????????????# ????## ##??? | | ?????????????????????# ?????## ##?? | | ???????????????????#?# ??????## #?? | | ?????????????????????# ?????#??#### #?? | | ????????????????????? ?????????### #?? | | ????????????????????? ?????????## ##?? | | ????????????????????# ????#?????# ##??? | | ???????????????????? ?????????## ##???? | | ????????????????????? ?????????# #????? | | ???????????????????????????????# ##?#??? | | ?????????????????????????##????## ##?????? | | ????????????????????????????????## ###??????? | | ?????????????????????????????????# #???#????? | | ?????????????????????????????????# #??##????? | | ?????????????????????????????????# ##???????? | | ?????????????????????????????????# #????????? | | ???????????????????????????# ##### ##???????? | | ???????????????????????????# #???????#? | | ???????????????????????????####### #???#????? | +----------------------------------------------------+ Best States ------------- Heat Dissipation 25 Energy Generation 10 Energy Capacity 250 Matter Stores 215 Matter Capacity 300 Sight Range 16 Terrain Scan Range 14 Terrain Scan Density 10 Evasion (%) 55 Recoil Reduction 2 Item Schematics ----------------- None Robot Schematics ------------------ None Fabricated ------------ Nothing Repaired ---------- Nothing Studied --------- None Alien Tech Used ----------------- None Achievements -------------- Dramatic Entrance Junior Dev Challenges ------------ None Game ------ Seed ChromaticCouplerBoomstick Manual? 0 Play Time 00:09:54 Cumulative 8.5 hours Start 2026.06.23 @ 22:00:47 End 2026.06.23 @ 22:09:38 Sessions 1 Manual Loads 0 Difficulty Rogue Special Mode None Game No. 18 Rogue 18 Adventurer 0 Explorer 0 Win Type - Total 0 Types 0/0/0/0/0/0/0/0/0/0 Lore% 4 Gallery% 10 Achievement% 11 Wizard Run 0 Options --------- Layout 1 ASCII 0 Keyboard 0 Movement Mouse Keybinds 0 Fullscreen 1 Font 24/Smallcaps Map View 25x17 Zoom Use 11% Tactical HUD 1 Map Filters NONE Filters NONE Steam 1 RUN: 384192a8-3945-4a4a-9947-eeece5a2ec01